Cogmind - Beta 15 @@@ ROGUE MODE // 2025.08.10 @ 04:05:04 Player: Mogwok Wargfriend Result: Destroyed by 8F-7HA(R) with Subdweller Machine Gun Performance ------------- Evolutions (0) 0 Regions Visited (3) 600 Robots Destroyed (32) 160 Value Destroyed (593) 593 Prototype IDs (0) 0 Alien Tech Used (0) 0 Bonus (0) 0 TOTAL SCORE: 1353 Bonus ------- None Cogmind --------- Core Integrity 0/250 Matter 261/300 Energy 250/250 System Corruption 0% Temperature Cool (0) Movement Walking (260) Ox2 Location -10/Subcaves Parts ------- > --- POWER (1) -------- Ion Engine > --- PROPULSION (2) --- Aluminum Leg > --- UTILITY (2) ------ Large Storage Unit > --- WEAPON (2) ------- Light Assault Rifle Light Assault Rifle > --- INVENTORY (15) --- Ion Engine Aluminum Leg Aluminum Leg Aluminum Leg Aluminum Leg Large Storage Unit Medium Matter Pod (100) Grenade Launcher Mining Laser Peak State ------------ > --- POWER ------------ Light Ion Engine > --- PROPULSION ------- Wheel Compact Wheel > --- UTILITY ---------- Large Storage Unit Seismic Detector > --- WEAPON ----------- Light Assault Rifle Light Assault Rifle > --- INVENTORY -------- Light Ion Engine Aluminum Leg Aluminum Leg Wheel Large Storage Unit Seismic Detector EM Pulse Gun Light Assault Rifle Grenade Launcher Mining Laser [Rating: 8] Favorites ----------- Power Light Ion Engine Engine Light Ion Engine Propulsion Aluminum Leg Leg Aluminum Leg Wheel Wheel Utility Large Storage Unit Device Seismic Detector Storage Large Storage Unit Protection Light Armor Plating Weapon Light Assault Rifle Energy Gun Medium Laser Ballistic Gun Light Assault Rifle Build | -11 -10 -10 -10 ------- Run | Yrd Mat Min Sub Slots Evolved . | . . . . Power . | . . . . Propulsion . | . . . . Utility . | . . . . Weapon . | . . . . Parts Attached 25 | 8 10 1 6 Power 3 | 1 2 . . Engine 3 | 1 2 . . Core . | . . . . Reactor . | . . . . Propulsion 6 | 2 4 . . Treads . | . . . . Leg 3 | . 3 . . Wheel 3 | 2 1 . . Hover . | . . . . Flight . | . . . . Utility 7 | 3 3 . 1 Device 3 | 2 . . 1 Storage 3 | 1 2 . . Processor . | . . . . Hackware . | . . . . Protection 1 | . 1 . . Artifact . | . . . . Weapon 9 | 2 1 1 5 Energy Gun 4 | . . 1 3 Energy Cannon . | . . . . Ballistic Gun 5 | 2 1 . 2 Ballistic Cannon . | . . . . Launcher . | . . . . Special Weapon . | . . . . Impact Weapon . | . . . . Slashing Weapon . | . . . . Piercing Weapon . | . . . . Special Melee Weapon . | . . . . Unidentified Prototypes . | . . . . Parts Lost 14 | . 6 . 8 Power 1 | . 1 . . Propulsion 5 | . 4 . 1 Utility 2 | . . . 2 Weapon 6 | . 1 . 5 Highest Loss Streak 8 | . 3 . 8 To Critical Strikes . | . . . . Average Backups 13 | 4 14 15 12 Power . | . . 1 1 Propulsion 3 | 2 4 4 4 Utility 3 | . 3 3 2 Weapon 5 | 1 6 7 5 Tool/Special . | . . . . Unused Backups 11 | . 4 . 7 Power 1 | . . . 1 Propulsion 4 | . . . 4 Utility 4 | . 3 . 1 Weapon 2 | . 1 . 1 Tool/Special . | . . . . Average Slot Usage (%) 99 | . 99 100 91 Engine 14 | . 14 14 14 Leg 16 | . 14 28 23 Wheel 10 | . 13 . . Device 6 | . 8 . 2 Storage 14 | . 14 14 14 Protection 7 | . 5 14 8 Energy Gun 2 | . . 12 11 Ballistic Gun 25 | . 28 15 15 Peak Build Rating 8 | 7 8 8 8 Average Rating 7 | 6 7 7 7 On Entrance 5 | . 7 8 8 Naked Turns . | . . . . Heaviest Build 31 | 11 30 31 31 Greatest Support 26 | 26 26 20 20 Greatest Overweight (x) 3 | 3 2 1 1 Average Overweight (x) . | . . 1 1 Largest Inventory Capacity 15 | 8 15 15 15 Average Capacity 14 | 7 14 15 15 Most Carried 15 | 7 15 15 15 Average Carried 13 | 4 14 15 12 Final Capacity 15 | 8 15 15 15 Final Carried 15 | 7 15 15 9 Class Distribution -------------------- 100% | Mutant Dominant Class ---------------- Mutant | -10/Materials Mutant | -10/Mines Mutant | -10/Subcaves Resources | -11 -10 -10 -10 ----------- Run | Yrd Mat Min Sub Matter Collected 680 | 328 317 17 18 Remotely . | . . . . Salvage Created 957 | 213 582 50 112 Parts 66 | 14 44 1 7 Haulers Intercepted 2 | . 2 . . Recyclers Shooed 2 | 1 . 1 . Parts Field Recycled . | . . . . Retrieved Matter . | . . . . Parts Self-Destructed . | . . . . Prevented . | . . . . Kills | -11 -10 -10 -10 ------- Run | Yrd Mat Min Sub Combat Hostiles Destroyed 19 | . 15 1 3 Guns 19 | . 15 1 3 Classes Destroyed 9 | 3 5 . 1 Worker 2 | 1 1 . . Tunneler 5 | 5 . . . Hauler 2 | . 2 . . Recycler 1 | 1 . . . Operator 1 | . 1 . . Watcher 2 | . 2 . . Swarmer 8 | . 8 . . Grunt 8 | . 7 1 . Subdweller 3 | . . . 3 Best Kill Streak 4 | 2 4 1 2 Combat Bots Only 3 | . 3 1 2 Max Kills in Single Turn 1 | 1 1 1 1 Gunslinging . | . . . . Exploded . | . . . . Melee . | . . . . Uniques/NPCs Destroyed . | . . . . Combat | -11 -10 -10 -10 -------- Run | Yrd Mat Min Sub Hostile Shots Fired 119 | . 75 7 37 Missed 29 | . 18 1 10 Hits 90 | . 57 6 27 Projectile 90 | . 57 6 27 AOE 6 | . . . 6 Damage Taken 1430 | . 588 101 741 Core 262 | . 97 16 149 Absorbed by Shields . | . . . . Core Remaining (%) 100 | 100 . . . Volleys Fired 125 | 24 74 7 20 Largest 2 | 2 2 2 2 Hottest 70 | 40 40 70 70 Shots Fired 247 | 48 147 14 38 Gun 247 | 48 147 14 38 Cannon . | . . . . Launcher . | . . . . Special . | . . . . Kinetic 228 | 48 147 7 26 Thermal 10 | . . 7 3 Explosive . | . . . . Electromagnetic 9 | . . . 9 Robot Hit Streak 11 | 10 11 3 10 Robot Miss Streak 5 | 2 5 2 2 Penetration Max . | . . . . Secondary Targets 3 | . 2 . 1 Max Gunslinging Chain 1 | . 1 . 1 Shots Hit Robots 159 | 34 84 8 33 Core Hits 70 | 14 42 4 10 Critical Kills . | . . . . Critical Parts Destroyed 1 | . 1 . . Critical Strikes 2 | . 1 1 . Burn 1 | . . 1 . Destroy 1 | . 1 . . Melee Attacks . | . . . . Impact . | . . . . Slashing . | . . . . Piercing . | . . . . Sneak Attacks . | . . . . Combat Hostiles . | . . . . Follow-up Attacks . | . . . . Damage Inflicted 1265 | 255 707 84 219 Guns 1265 | 255 707 84 219 Cannons . | . . . . Explosions . | . . . . Melee . | . . . . Ramming . | . . . . Kinetic 1132 | 255 707 20 150 Thermal 89 | . . 64 25 Explosive . | . . . . Electromagnetic 44 | . . . 44 Impact . | . . . . Slashing . | . . . . Piercing . | . . . . Highest Corruption . | . . . . Average Corruption . | . . . . Corruption Purged . | . . . . Corruption Blocked . | . . . . Overload Shots . | . . . . Overflow Damage . | . . . . Projectiles . | . . . . Explosions . | . . . . Melee . | . . . . Knockbacks . | . . . . Impact . | . . . . Kinetic . | . . . . Secondary . | . . . . Self-Inflicted Damage . | . . . . Shots . | . . . . Rammed . | . . . . Targets Rammed . | . . . . Kicked . | . . . . Crushed . | . . . . Highest Temperature 128 | . 31 128 . Average Temperature 25 | . 9 59 . Received Heat Transfer 300 | . 234 54 12 Siege Activations . | . . . . Martial Activations . | . . . . Shielding Activations . | . . . . Robots Disrupted . | . . . . Combat Hostiles . | . . . . Robots Corrupted . | . . . . Combat Hostiles . | . . . . Parts Fried . | . . . . Impact Corruptions . | . . . . Robots Melted . | . . . . Combat Hostiles . | . . . . Parts Melted . | . . . . Heat Transferred 333 | . . 259 74 Parts Sabotaged . | . . . . Parts Stolen . | . . . . Parts Stripped . | . . . . Power Chain Reactions . | . . . . Alert | -11 -10 -10 -10 ------- Run | Yrd Mat Min Sub Maximum Alert Level . | . . . . Low Security (%) 100 | 100 100 100 . Level 1 . | . . . . Level 2 . | . . . . Level 3 . | . . . . Level 4 . | . . . . Level 5 . | . . . . High Security . | . . . . Max Security . | . . . . Peak Influence 138 | 10 138 45 . Initial 16 | . . 16 . Average 45 | 1 55 10 . Influence Increases 586 | 35 506 45 . Destroy 0b10 Robot/C 320 | . 300 20 . Destroy 0b10 Robot/NC 65 | 35 30 . . Destroy Leader 88 | . 78 10 . Successful Hack 38 | . 38 . . Lose Combat Pursuer 75 | . 60 15 . Influence Decreases 586 | 35 462 89 . Entered New Map 28 | . . 28 . Time Decay 498 | 35 402 61 . Lost Part 60 | . 60 . . Squads Dispatched 3 | . 3 . . Investigation 1 | . 1 . . Extermination . | . . . . Reinforcement 2 | . 2 . . Assault . | . . . . Garrison . | . . . . Intercept . | . . . . Searches Triggered . | . . . . Construction Impeded . | . . . . Haulers Reinforced . | . . . . Active Scanning Responses . | . . . . Cargo Convoy Interrupts . | . . . . Stealth | -11 -10 -10 -10 --------- Run | Yrd Mat Min Sub Distress Signals 1 | . 1 . . Communications Jammed . | . . . . Distress Signals . | . . . . Times Spotted 38 | . 31 2 5 Peak Tracking Total 4 | . 4 2 4 Tactical Retreats 4 | . 3 1 . Traps | -11 -10 -10 -10 ------- Run | Yrd Mat Min Sub Traps Triggered 1 | . 1 . . Indirectly . | . . . . Trap Hack Attempts . | . . . . Triggered . | . . . . Disarmed . | . . . . Reprogrammed . | . . . . Reused . | . . . . Traps Extracted . | . . . . Installed . | . . . . Triggered . | . . . . Machines | -11 -10 -10 -10 ---------- Run | Yrd Mat Min Sub Machines Disabled . | . . . . Max in Single Turn . | . . . . Machines Repaired . | . . . . Machines Dismantled . | . . . . Machines Sabotaged . | . . . . Overloaded Fab Kills . | . . . . Hacking | -11 -10 -10 -10 --------- Run | Yrd Mat Min Sub Machines Accessed 7 | . 7 . . Terminals 5 | . 5 . . Fabricators . | . . . . Repair Stations . | . . . . Recycling Units 2 | . 2 . . Scanalyzers . | . . . . Garrison Access . | . . . . Total Hacks 29 | . 29 . . Successful 16 | . 16 . . Failed 12 | . 12 . . Catastrophic 2 | . 2 . . Database Lockouts 1 | . 1 . . Manual 25 | . 25 . . Terminals 20 | . 20 . . Fabricators . | . . . . Repair Stations . | . . . . Recycling Units 9 | . 9 . . Scanalyzers . | . . . . Garrison Access . | . . . . Terminal Hacks 6 | . 6 . . Robot Analysis 2 | . 2 . . Terminal Index 1 | . 1 . . Locate Traps 1 | . 1 . . Registered Components 1 | . 1 . . Registered Prototypes 1 | . 1 . . Fabricator Hacks . | . . . . Repair Station Hacks . | . . . . Recycling Unit Hacks 3 | . 3 . . Report Inventory 2 | . 2 . . Retrieve Components 1 | . 1 . . Scanalyzer . | . . . . Garrison Access Hacks . | . . . . Unauthorized Hacks 7 | . 7 . . Terminals 4 | . 4 . . Botnet 3 | . 3 . . Operators 1 | . 1 . . Fabricators . | . . . . Repair Stations . | . . . . Recycling Units 3 | . 3 . . Reject 2 | . 2 . . Mask 1 | . 1 . . Scanalyzers . | . . . . Garrison Access . | . . . . Data Cores Recovered . | . . . . Used . | . . . . Hacking Detections 6 | . 6 . . Full Trace Events . | . . . . Feedback Events . | . . . . Feedback Blocked . | . . . . Robot Schematics Acquired . | . . . . Robots Built . | . . . . Authchips . | . . . . Time . | . . . . Total Robot Build Rating . | . . . . Part Schematics Acquired . | . . . . Parts Built . | . . . . Authchips . | . . . . Time . | . . . . Total Part Build Rating . | . . . . Parts Repaired . | . . . . Time . | . . . . Parts Recycled . | . . . . Recycled Matter . | . . . . Retrieved Matter . | . . . . Retrieved Components 10 | . 10 . . Parts Scanalyzed . | . . . . Part Schematics Acquired . | . . . . Parts Damaged . | . . . . Bothacking | -11 -10 -10 -10 ------------ Run | Yrd Mat Min Sub Used RIF Installer . | . . . . Robots Hacked . | . . . . Non-combat . | . . . . Combat . | . . . . Robot Hacks Applied . | . . . . Relay Couplers Released . | . . . . Fabnet Peak Effective % . | . . . . Robots Rewired . | . . . . Allies Hacked . | . . . . Hacks Repelled . | . . . . Allies | -11 -10 -10 -10 -------- Run | Yrd Mat Min Sub Total Allies . | . . . . Largest Group . | . . . . Highest-Rated Group . | . . . . Highest-Rated Ally . | . . . . Total Orders . | . . . . Ally Attacks . | . . . . Total Damage . | . . . . Kills . | . . . . Allies Corrupted . | . . . . Allies Melted . | . . . . Intel | -11 -10 -10 -10 ------- Run | Yrd Mat Min Sub Active Infowar (turns) 1133 | 113 1020 . . Seismic 1133 | 113 1020 . . Robot Analysis Total 2 | . 2 . . Derelict Logs Recovered . | . . . . Drone Launches . | . . . . Drone Recoveries . | . . . . Exploration | -11 -10 -10 -10 ------------- Run | Yrd Mat Min Sub Turns Passed 2324 | 186 1788 262 88 Spaces Moved 1200 | 112 951 122 15 Core 24 | 24 . . . Treads . | . . . . Legs 508 | . 371 122 15 Wheels 668 | 88 580 . . Hover . | . . . . Flight . | . . . . Fastest Speed 50 | 50 90 190 190 Average Speed 134 | 94 131 190 190 Slowest Speed 200 | 200 190 190 190 Overloaded Moves . | . . . . Propulsion Burnouts . | . . . . Robots Hopped . | . . . . Potential Cave-ins . | . . . . Cave-ins Triggered . | . . . . Exploration Rate (%) 31 | 6 92 23 4 Regions Visited 3 Branch Regions 2 Pre-discovered Areas . | . . . . Known Exits Taken . | . . . . Unknown Exits Taken 3 | 1 1 1 . Scrap Searched 2 | . . 2 . Spaces Dug . | . . . . Terrain Destroyed . | . . . . Melee . | . . . . Projectile . | . . . . AOE . | . . . . Terrain Rammed . | . . . . Walls Destroyed . | . . . . Machines Disabled . | . . . . Actions | -11 -10 -10 -10 --------- Run | Yrd Mat Min Sub Total 1707 | 149 1376 140 42 Wait 324 | . 313 10 1 Move 1197 | 111 950 121 15 Hop . | . . . . Pick Up 26 | 6 20 . . Fast Attach 9 | 7 1 1 . Attach 12 | . 6 . 6 Detach . | . . . . Swap 4 | 1 3 . . Drop 10 | . 9 1 . Fire 125 | 24 74 7 20 Melee . | . . . . Ram . | . . . . Kick . | . . . . Crush . | . . . . Escape Stasis . | . . . . Rewire . | . . . . Trap . | . . . . Miscellaneous . | . . . . Route ------- -11/Scrapyard -10/Materials (discovered 4 exits: [*Mat x3] / [*Min]) -10/Mines -10/Subcaves (discovered 1 exit: [*Mat]) History --------- Turn | Location | Event 17 | -11/Scrapyard | Discovered new exit (range 15) 187 | -11/Scrapyard | Entered Materials 318 | -10/Materials | Build established: Mutant 374 | -10/Materials | Discovered new exit (range 9) 415 | -10/Materials | Central database locked down 527 | -10/Materials | Discovered new exit (range 12) 1042 | -10/Materials | Lost 3 parts (1p1n1w) 1661 | -10/Materials | Discovered new exit (range 10) 1931 | -10/Materials | Discovered new exit (range 12) 1975 | -10/Materials | Entered Mines 2226 | -10/Mines | Discovered new exit (range 6) 2237 | -10/Mines | Entered Subcaves 2285 | -10/Subcaves | Core integrity fell below 50% 2288 | -10/Subcaves | Discovered new exit (range 7) 2296 | -10/Subcaves | Ambushed by Subdweller buried in earth 2297 | -10/Subcaves | Core integrity fell below 20% 2325 | -10/Subcaves | Destroyed by 8F-7HA(R) with Subdweller Machine Gun Last Messages --------------- 02267_ Med. Laser destroyed. 02271_ EM Pulse Gun destroyed. 02275_ ED-ABT(R) destroyed. 02278_ Acquired 18 matter. 02281_ Subatomizers dissect the Sub. Monowheel. 02288_ EM Pulse Gun destroyed. 02288_ Lgt. Armor Plating destroyed. 02288_ KS-1HX(R) destroyed. 02288_ EXIT=FOUND 02295_ Subatomizers dissect the Sub. Optics. 02296_ Aluminum Leg destroyed. 02297_ 45-KDL(R): "NOSTUCKSUB!" 02298_ Lgt. Assault Rifle destroyed. 02301_ EM Pulse Gun destroyed. 02306_ Subatomizers dissect the Sub. Optics. 02307_ The unstable cave ceiling collapses. 02310_ TB-U0E(R) destroyed. 02310_ Switching to secondary target: 45-KDL(R). 02317_ Heat Sink destroyed. 02318_ 45-KDL(R) destroyed. Map ----- +----------------------------------------------------+ | ?????????????????????????????????????????????????? | | ?????????????????????????????????????????????????? | | ?????????????????????????????????????????????????? | | ?????????????????????????????????????????????????? | | ?????????????????????????????????????????????????? | | ?????????????????????????????????????????????????? | | ?????????????????????????????????????????????????? | | ?????????????????????????????????????????????????? | | ?????????????????????????????????????????????????? | | ?????????????????????????????????????????????????? | | ?????????????????????????????????????????????????? | | ?????????????????????????????????????????????????? | | ?????????????????????????????????????????????????? | | ?????????????????????????????????????????????????? | | ???????????????????????####?????????????#####????? | | ??????????????????????# %#??????????## #????? | | ?????????????????????? "#???????## #????? | | ?????????????????????? "#???????# #?????? | | ??????????????????????# """####????# #?????? | | ??????????????????????# """"# ####?# #?????? | | ????????????????????### ## " ### #??????? | | ????????????????????# ; ## #???????? | | ????????????????????# ! R #?????????? | | ????????????????????# ]% #?????????? | | ???????????????""""## # #?????????? | | ???????????????"""< @ ; #### ??????? | | ?????????????? "" " !&%! #??# ??? | | ?????????????? " " & ; ##?? # | | ?????????????? " ### ;;#??? # # # | | ????????????????????# # #??? ##?##?? | | ????????????????????##" ; #??? #??????? | | ?????????????????????#" ; ##?? #??????? | | ?????????????????????"" #######??? ##??????? | | ?????????????????????" ?????????? ##???????? | | ????????????????????? ?????????? ##????????? | | ????????????????????? ????????? ##?????????? | | ????????????????????? ????????? #???????????? | | ????????????????????? ????????? ##????????????? | | ????????????????????? ????????? ??????????????? | | ?????????????????????### ????????????????????????? | | ?????????????????????????????????????????????????? | | ?????????????????????????????????????????????????? | | ?????????????????????????????????????????????????? | | ?????????????????????????????????????????????????? | | ?????????????????????????????????????????????????? | | ?????????????????????????????????????????????????? | | ?????????????????????????????????????????????????? | | ?????????????????????????????????????????????????? | | ?????????????????????????????????????????????????? | | ?????????????????????????????????????????????????? | +----------------------------------------------------+ Best States ------------- Heat Dissipation 35 Energy Generation 10 Energy Capacity 250 Matter Stores 300 Matter Capacity 300 Sight Range 16 Terrain Scan Density 10 Armor Coverage 150 Evasion (%) 42 Item Schematics ----------------- None Robot Schematics ------------------ None Fabricated ------------ Nothing Repaired ---------- Nothing Alien Tech Used ----------------- None Achievements -------------- None Challenges ------------ None Game ------ Seed SpliceDrainedStorm Manual? 0 Play Time 00:18:51 Cumulative 295.3 hours Start 2025.08.10 @ 02:10:13 End 2025.08.10 @ 04:05:04 Sessions 1 Manual Loads 0 Difficulty Rogue Special Mode None Game No. 260 Rogue 260 Adventurer 0 Explorer 0 Win Type - Total 1 Types 1/0/0/0/0/0/0/0/0/0 Lore% 67 Gallery% 64 Achievement% 50 Wizard Run 0 Options --------- Layout 2 ASCII 1 Keyboard 1 Movement Numpad Keybinds 0 Fullscreen 2 Font 32/TamsynBold Map View 50x44 Zoom Use 0% Tactical HUD 1 Map Filters NONE Filters NONE Steam 1 RUN: 1f2640b3-558f-480d-a6d9-2921eadb41a0